Cogmind - Beta 9.3 @@@ ROGUE MODE // 2020.01.03 @ 08:29:27 Player: 3.14 Result: Self-destructed Performance ------------- Evolutions (2) 1000 Regions Visited (3) 600 Robots Destroyed (32) 160 Value Destroyed (784) 784 Prototype IDs (2) 40 Alien Tech Used (0) 0 Bonus (0) 0 TOTAL SCORE: 2584 Bonus ------- None Cogmind --------- Core Integrity 216/550 Matter 300/300 Energy 100/100 System Corruption 0% Temperature Cool (0) Movement Walking (150) Ox1 Location -8/Materials Parts ------- > --- POWER (1) -------- (None) > --- PROPULSION (4) --- Aluminum Leg Improved Aluminum Leg Carbon-fiber Leg > --- UTILITY (4) ------ Large Storage Unit Large Storage Unit > --- WEAPON (2) ------- Light Assault Rifle Mining Claw > --- INVENTORY (16) --- Light Nuclear Core Aluminum Leg Carbon-fiber Leg Aerolev Unit Improved Flight Unit Improved Flight Unit Improved Flight Unit Improved Heat Sink Medium Storage Unit Faulty Precision Beam Rifle Precision Beam Rifle Light Assault Rifle Grenade Launcher Grenade Launcher Mace Maul Peak State ------------ > --- POWER ------------ (None) > --- PROPULSION ------- Carbon-fiber Leg Carbon-fiber Leg Carbon-fiber Leg Carbon-fiber Leg > --- UTILITY ---------- Medium Storage Unit Large Storage Unit Weapon Shielding > --- WEAPON ----------- Mining Claw Mining Claw > --- INVENTORY -------- Aluminum Leg Improved Aluminum Leg Improved Flight Unit Improved Flight Unit Improved Flight Unit Light Assault Rifle Light Assault Rifle Grenade Launcher Grenade Launcher Mace Maul [Rating: 19] Favorites ----------- Power Light Ion Engine Engine Light Ion Engine Power Core Light Nuclear Core Propulsion Aluminum Leg Treads Light Treads Leg Aluminum Leg Hover Unit Aerolev Unit Flight Unit Improved Flight Unit Utility Large Storage Unit Device Integration Mediator Storage Large Storage Unit Protection Weapon Shielding Weapon Mining Claw Energy Gun Small Laser Energy Cannon Beam Cannon Ballistic Gun Light Assault Rifle Slashing Weapon Mining Claw Build | -11 -10 -9 -8 ------- Run | Scr Mat Mat Mat Slots Evolved 4 | . . 2 2 Power . | . . . . Propulsion 2 | . . 1 1 Utility 2 | . . 1 1 Weapon . | . . . . Parts Attached 40 | 7 8 7 18 Power 3 | 1 . 1 1 Engine 2 | 1 . 1 . Core 1 | . . . 1 Reactor . | . . . . Propulsion 19 | 1 3 2 13 Treads 2 | 1 1 . . Leg 15 | . 2 2 11 Wheel . | . . . . Hover 1 | . . . 1 Flight 1 | . . . 1 Utility 7 | 2 2 1 2 Device 1 | . . . 1 Storage 5 | 2 2 . 1 Processor . | . . . . Hackware . | . . . . Protection 1 | . . 1 . Artifact . | . . . . Weapon 11 | 3 3 3 2 Energy Gun 2 | 2 . . . Energy Cannon 2 | . 1 1 . Ballistic Gun 2 | 1 . . 1 Ballistic Cannon . | . . . . Launcher . | . . . . Special Weapon . | . . . . Impact Weapon . | . . . . Slashing Weapon 5 | . 2 2 1 Piercing Weapon . | . . . . Special Melee Weapon . | . . . . Unidentified Prototypes 2 | . . . 2 Parts Lost 15 | . . 1 14 Power 3 | . . 1 2 Propulsion 8 | . . . 8 Utility 2 | . . . 2 Weapon 2 | . . . 2 Highest Loss Streak 5 | . . 1 5 Average Slot Usage (%) 91 | . 95 98 83 Engine 8 | . 14 10 2 Treads 3 | . 14 . . Leg 27 | . 9 32 34 Storage 21 | . 28 22 18 Protection 7 | . . 11 8 Energy Gun 1 | . 7 . . Ballistic Gun 2 | . 8 . . Slashing Weapon 15 | . 10 21 15 Naked Turns . | . . . . Heaviest Build 36 | 13 31 33 36 Greatest Support 60 | 20 40 30 60 Greatest Overweight (x) 1 | . 1 1 1 Average Overweight (x) . | . . . . Largest Inventory Capacity 20 | 8 14 14 20 Average Capacity 13 | 6 12 14 14 Most Carried 16 | 5 14 14 16 Average Carried 12 | 2 11 13 12 Final Capacity 16 | 8 14 14 16 Final Carried 16 | 5 14 14 16 Class Distribution -------------------- 65% | Mutant 34% | Scavenger-Mutant Dominant Class ---------------- Mutant | -10/Materials Mutant | -9/Materials Scavenger-Mutant | -8/Materials Resources | -11 -10 -9 -8 ----------- Run | Scr Mat Mat Mat Matter Collected 587 | 273 102 47 165 Remotely . | . . . . Salvage Created 1384 | 54 310 491 529 Parts 62 | 4 11 25 22 Haulers Intercepted 4 | . 2 . 2 Recyclers Shooed 9 | . 5 3 1 Parts Field Recycled . | . . . . Retrieved Matter . | . . . . Parts Self-Destructed . | . . . . Prevented . | . . . . Kills | -11 -10 -9 -8 ------- Run | Scr Mat Mat Mat Combat Hostiles Destroyed 22 | . 3 11 8 Melee 18 | . 1 9 8 Guns 2 | . 2 . . Cannons 2 | . . 2 . Classes Destroyed 8 | 1 3 3 1 Worker 1 | . 1 . . Hauler 4 | . 2 . 2 Recycler 5 | 1 1 1 2 Swarmer 5 | . . 3 2 Grunt 14 | . 3 6 5 Brawler 1 | . . 1 . Duelist 1 | . . . 1 Sentry 1 | . . 1 . Best Kill Streak 4 | 1 3 4 2 Combat Bots Only 4 | . 2 4 2 Max Kills in Single Turn 1 | 1 1 1 1 Gunslinging . | . . . . Exploded . | . . . . Melee 1 | . 1 1 1 Uniques/NPCs Destroyed . | . . . . Combat | -11 -10 -9 -8 -------- Run | Scr Mat Mat Mat Damage Taken 2117 | . 57 379 1681 Core 438 | . . 104 334 Absorbed by Shields . | . . . . Core Remaining (%) 91 | 100 100 74 . Volleys Fired 33 | 3 22 7 1 Largest 2 | 2 2 1 1 Hottest 80 | 60 80 60 20 Shots Fired 58 | 6 44 7 1 Gun 50 | 6 43 . 1 Cannon 8 | . 1 7 . Launcher . | . . . . Special . | . . . . Kinetic 26 | 3 22 . 1 Thermal 32 | 3 22 7 . Explosive . | . . . . Electromagnetic . | . . . . Robot Hit Streak 6 | 5 6 2 2 Robot Miss Streak 4 | . 3 4 . Penetration Max . | . . . . Secondary Targets . | . . . . Shots Hit Robots 144 | 5 33 27 79 Core Hits 50 | 2 15 13 20 Critical Hits 2 | . . . 2 Critical Kills . | . . . . Critical Parts Destroyed 2 | . . . 2 Melee Attacks 146 | . 4 34 108 Impact . | . . . . Slashing 146 | . 4 34 108 Piercing . | . . . . Sneak Attacks 15 | . 2 7 6 Combat Hostiles 2 | . . 2 . Follow-up Attacks 28 | . 1 6 21 Damage Inflicted 3472 | 48 488 927 2009 Guns 365 | 48 307 . 10 Cannons 52 | . . 52 . Explosions . | . . . . Melee 3055 | . 181 875 1999 Ramming . | . . . . Kinetic 124 | 15 99 . 10 Thermal 293 | 33 208 52 . Explosive . | . . . . Electromagnetic . | . . . . Impact . | . . . . Slashing 3055 | . 181 875 1999 Piercing . | . . . . Highest Corruption . | . . . . Average Corruption . | . . . . Corruption Purged . | . . . . Overload Shots . | . . . . Overflow Damage 349 | . 84 157 108 Projectiles . | . . . . Explosions . | . . . . Melee 349 | . 84 157 108 Knockbacks . | . . . . Impact . | . . . . Kinetic . | . . . . Secondary . | . . . . Self-Inflicted Damage . | . . . . Shots . | . . . . Rammed . | . . . . Targets Rammed . | . . . . Kicked . | . . . . Crushed . | . . . . Highest Temperature 64 | 20 64 24 . Average Temperature 22 | 15 26 12 . Received Heat Transfer 750 | . 33 78 639 Siege Activations . | . . . . Robots Corrupted . | . . . . Combat Hostiles . | . . . . Parts Fried . | . . . . Impact Corruptions . | . . . . Robots Melted . | . . . . Combat Hostiles . | . . . . Parts Melted 1 | . 1 . . Heat Transferred 661 | 75 475 111 . Parts Sabotaged . | . . . . Parts Stolen . | . . . . Parts Stripped . | . . . . Power Chain Reactions . | . . . . Missiles Intercepted . | . . . . Alert | -11 -10 -9 -8 ------- Run | Scr Mat Mat Mat Peak Influence 355 | 5 112 355 114 Average Influence 108 | 3 56 192 83 Maximum Alert Level 1 | . . 1 . Low Security (%) 88 | 100 100 64 100 Level 1 11 | . . 35 . Level 2 . | . . . . Level 3 . | . . . . Level 4 . | . . . . Level 5 . | . . . . High Security . | . . . . Max Security . | . . . . Squads Dispatched 4 | . . 1 3 Investigation 1 | . . . 1 Extermination . | . . . . Reinforcement 3 | . . 1 2 Assault . | . . . . Garrison . | . . . . Intercept . | . . . . Construction Impeded . | . . . . Haulers Reinforced . | . . . . Stealth | -11 -10 -9 -8 --------- Run | Scr Mat Mat Mat Distress Signals 3 | . 1 . 2 Communications Jammed . | . . . . Distress Signals . | . . . . Times Spotted 58 | . 5 12 41 Peak Tracking Total 8 | . 4 3 8 Tactical Retreats 14 | . 1 1 12 Traps | -11 -10 -9 -8 ------- Run | Scr Mat Mat Mat Traps Triggered 2 | . . 1 1 Indirectly . | . . . . Trap Hack Attempts . | . . . . Triggered . | . . . . Disarmed . | . . . . Reprogrammed . | . . . . Reused . | . . . . Traps Extracted . | . . . . Installed . | . . . . Triggered . | . . . . Machines | -11 -10 -9 -8 ---------- Run | Scr Mat Mat Mat Machines Disabled . | . . . . Max in Single Turn . | . . . . Machines Sabotaged . | . . . . Garrisons Compromised . | . . . . Overloaded Fab Kills . | . . . . Fab Network Shutdowns . | . . . . Hacking | -11 -10 -9 -8 --------- Run | Scr Mat Mat Mat Machines Accessed 5 | . . 3 2 Terminals 3 | . . 1 2 Fabricators . | . . . . Repair Stations 1 | . . 1 . Recycling Units . | . . . . Scanalyzers 1 | . . 1 . Garrison Access . | . . . . Total Hacks 16 | . . 10 6 Successful 10 | . . 8 2 Failed 6 | . . 2 4 Catastrophic 2 | . . . 2 Database Lockouts . | . . . . Manual 8 | . . 2 6 Terminals 8 | . . 2 6 Fabricators . | . . . . Repair Stations 6 | . . 6 . Recycling Units . | . . . . Scanalyzers 2 | . . 2 . Garrison Access . | . . . . Terminal Hacks . | . . . . Fabricator Hacks . | . . . . Repair Station Hacks 5 | . . 5 . Scan Component 3 | . . 3 . Repair 2 | . . 2 . Recycling Unit Hacks . | . . . . Scanalyzer 2 | . . 2 . Insert Component 1 | . . 1 . Analyze 1 | . . 1 . Garrison Access Hacks . | . . . . Unauthorized Hacks 8 | . . 3 5 Terminals 3 | . . 1 2 Botnet 2 | . . 1 1 Operators 1 | . . . 1 Fabricators . | . . . . Repair Stations . | . . . . Recycling Units . | . . . . Scanalyzers . | . . . . Garrison Access . | . . . . Data Cores Recovered . | . . . . Used . | . . . . Hacking Detections 5 | . . 3 2 Full Trace Events . | . . . . Feedback Events . | . . . . Feedback Blocked . | . . . . Robot Schematics Acquired . | . . . . Robots Built . | . . . . Matter . | . . . . Time . | . . . . Total Robot Build Rating . | . . . . Part Schematics Acquired 1 | . . 1 . Parts Built . | . . . . Matter . | . . . . Time . | . . . . Total Part Build Rating . | . . . . Parts Repaired 2 | . . 2 . Time 52 | . . 52 . Parts Recycled . | . . . . Recycled Matter . | . . . . Retrieved Matter . | . . . . Retrieved Components . | . . . . Parts Scanalyzed 1 | . . 1 . Part Schematics Acquired 1 | . . 1 . Parts Damaged . | . . . . Bothacking | -11 -10 -9 -8 ------------ Run | Scr Mat Mat Mat Used RIF Installer . | . . . . Robots Hacked . | . . . . Non-combat . | . . . . Combat . | . . . . Robot Hacks Applied . | . . . . Relay Couplers Released . | . . . . Robots Rewired . | . . . . Allies Hacked . | . . . . Hacks Repelled . | . . . . Allies | -11 -10 -9 -8 -------- Run | Scr Mat Mat Mat Total Allies . | . . . . Largest Group . | . . . . Highest-Rated Group . | . . . . Highest-Rated Ally . | . . . . Total Orders . | . . . . Ally Attacks . | . . . . Total Damage . | . . . . Kills . | . . . . Allies Corrupted . | . . . . Allies Melted . | . . . . Intel | -11 -10 -9 -8 ------- Run | Scr Mat Mat Mat Robot Analysis Total . | . . . . Derelict Logs Recovered . | . . . . Drone Launches . | . . . . Drone Recoveries . | . . . . Exploration | -11 -10 -9 -8 ------------- Run | Scr Mat Mat Mat Turns Passed 1652 | 98 388 544 622 Spaces Moved 691 | 48 179 238 226 Core 1 | 1 . . . Treads 143 | 47 96 . . Legs 547 | . 83 238 226 Wheels . | . . . . Hover . | . . . . Flight . | . . . . Fastest Speed 50 | 50 150 120 120 Average Speed 144 | 157 159 149 124 Slowest Speed 180 | 160 180 150 150 Overloaded Moves . | . . . . Propulsion Burnouts . | . . . . Robots Hopped . | . . . . Cave-ins Triggered . | . . . . Exploration Rate (%) 21 | 3 28 30 25 Regions Visited 3 Branch Regions . Pre-discovered Areas . | . . . . Known Exits Taken . | . . . . Unknown Exits Taken 3 | 1 1 1 . Scrap Searched . | . . . . Spaces Dug . | . . . . Terrain Destroyed . | . . . . Melee . | . . . . Projectile . | . . . . AOE . | . . . . Actions | -11 -10 -9 -8 --------- Run | Scr Mat Mat Mat Total 1038 | 62 237 360 379 Wait 103 | . 1 67 35 Move 688 | 47 178 237 226 Hop . | . . . . Pick Up 39 | 5 16 8 10 Fast Attach 13 | 6 1 3 3 Attach 14 | . 2 2 10 Detach . | . . . . Swap 13 | 1 5 2 5 Drop 18 | . 9 6 3 Fire 33 | 3 22 7 1 Melee 117 | . 3 28 86 Ram . | . . . . Kick . | . . . . Crush . | . . . . Escape Stasis . | . . . . Rewire . | . . . . Trap . | . . . . Miscellaneous . | . . . . Route ------- -11/Scrapyard -10/Materials -9/Materials -8/Materials History --------- Turn | Location | Event 30 | -11/Scrapyard | Discovered new exit (range 15) 99 | -11/Scrapyard | Entered Materials 376 | -10/Materials | Build established: Mutant 416 | -10/Materials | Discovered new exit (range 10) 487 | -10/Materials | Entered another Materials area 487 | -9/Materials | Evolved 2 slots: Propulsion x1, Utility x1 927 | -9/Materials | Repaired Mining Claw 954 | -9/Materials | Repaired Aluminum Leg 965 | -9/Materials | Discovered new exit (range 6) 1031 | -9/Materials | Entered another Materials area 1031 | -8/Materials | Evolved 2 slots: Propulsion x1, Utility x1 1269 | -8/Materials | Build established: Scavenger-Mutant 1276 | -8/Materials | Lost 5 parts (1p2n1u1w) 1404 | -8/Materials | Lost 4 parts (1p3n) 1428 | -8/Materials | Core integrity fell below 50% 1653 | -8/Materials | Self-destructed Last Messages --------------- 01519_ Dropped Med. Storage Unit. 01521_ Acquired Med. Storage Unit. 01524_ Acquired Lrg. Storage Unit. 01551_ K-01 Serf collects debris. 01583_ Sneak attack on A-02 Transporter. 01583_ A-02 Transporter destroyed. 01586_ Acquired 10 matter. 01589_ Acquired Prototype Hover Unit. 01592_ Identified Imp. Flight Unit. 01593_ Identified Aerolev Unit. 01599_ Dropped Lrg. Storage Unit. 01599_ Acquired 32 matter. 01602_ Acquired Prototype Energy Gun. 01627_ Weapon Shielding destroyed. 01629_ Carbon-fiber Leg destroyed. 01634_ S-10 Pest destroyed. 01640_ R-06 Scavenger collects Flight Unit. 01643_ O-16 Technician: "IFF HANDSHAKE FAILED. SECURING TERMINAL." 01648_ ALERT: Hostiles spotted, dispatching reinforcements to Terminal M003. Map ----- +----------------------------------------------------+ | """ """ # ##?????# # | #? | | """ """ # ##?????########## #? | | """ """ ##########???????????????# """ #? | | ## # ####???????????????# """ #? | | #?###########????????????# """ #? | | """ """ #?????## ! !##???????????########? | | """ """ #?????#! !#???????????????????? | | """ """ #?????#! !#???????????????????? | | # ####### #####???????????????????? | | # #???????????????????????? | | # """ """ #???????????????????????? | | #??""" """ T #???????????????????????? | | ???""" """ #???????????????????????? | | ??? ###############??????????? | | ??? ] # !#??????????? | | ?? """ """ + """" """" #??????????? | | ???""" """ # """" """" #??????????? | | ????"" """ """ # """" """" #??????????? | | ???? """ # =! #??????????? | | ???? ?? """ # ! #??????????? | | ???????####### ###+###########??????????? | | ?????????????# #?# #?#########??????????? | | ?????????????# """ ### ### #??????????? | | ?????????????+ """ ## """ #???????????? | | ?????????????# """ s/% "T" #???????????? | | ?????????????#[ @## o #???????????? | | ?????????????# ## #???????????? | | ?????????????# """ s## #???????????? | | ?????????????# """ ##/#####???????????? | | ??????????????? """ ?? ???????????????? | | ???????????????? ?? ??????????????? | | ??????????????? #?+##??????????????? | | ??????????????#+########+###??????????????????? | | ??????????????????????? ?????????????????????? | | ???????????????????????""?????????????????????? | | ???????????????????????""?????????????????????? | | ???????????????????????""?????????????????????? | | ??????????????????????????????????????????????? | | ??????????????????????????????????????????????? | | | | | | | | | | | | | | | | | | | | | | | +----------------------------------------------------+ Best States ------------- Heat Dissipation 31 Energy Generation 14 Energy Capacity 160 Matter Stores 300 Matter Capacity 300 Sight Range 16 Terrain Scan Density 10 Weapon Shielding 33 Evasion (%) 40 Recoil Reduction 2 Item Schematics ----------------- Mining Claw | -9/Materials | Scanalyzed Robot Schematics ------------------ None Fabricated ------------ Nothing Alien Tech Used ----------------- None Achievements -------------- None Challenges ------------ None Game ------ Seed CloakingColdBroadsword Manual? 0 Play Time 00:15:32 Cumulative 432.0 hours Start 2020.01.03 @ 08:18:37 End 2020.01.03 @ 08:29:27 Sessions 1 Manual Loads 0 Difficulty Rogue Special Mode None Game No. 755 Rogue 755 Adventurer 0 Explorer 0 Win Type - Total 32 Types 24/0/3/4/1/0/0 Lore% 93 Gallery% 92 Achievement% 80 Wizard Run 0 Options --------- ASCII 1 Keyboard 0 Movement Numpad Keybinds 0 Fullscreen 0 Font 14/SmallcapsGlow Map View 76x50 Tactical HUD 1 Map Filters NONE Filters NONE Steam 1 RUN: 85142431-aca1-4219-8b23-035ec8e995b2